bitfinex/quotes_SOLUSD_20251118
["timestamp","ask_amount","ask_price","bid_price","bid_amount"]
[1763439046071,8.95275977,134.16,134.12,8.8769365]
[1763439046270,5.92449397,134.26,134.12,8.1769365]
[1763439046271,9.78882769,134.19,134.12,8.1769365]
[1763439046471,0.7,134.15,134.1,8.8769365]
[1763439046776,8.95275977,134.13,134.09,8.1769365]
[1763439047278,8.95275977,134.13,134.09,8.8769365]
[1763439047642,8.95275977,134.14,134.1,8.8769365]
[1763439047859,8.95275977,134.15,134.12,8.1769365]
[1763439048048,8.95275977,134.15,134.12,0.7]
[1763439048248,8.95275977,134.15,134.12,8.8769365]
[1763439048639,8.95275977,134.13,134.09,8.1769365]
[1763439048963,8.95275977,134.1,134.08,8.1769365]
[1763439049409,18.82096,134.13,134.08,8.1769365]
[1763439049672,8.95275977,134.11,134.08,8.1769365]
[1763439050048,0.7,134.12,134.08,8.1769365]
[1763439050049,8.95275977,134.12,134.08,8.1769365]
[1763439050249,8.95275977,134.11,134.08,8.8769365]
[1763439050673,0.7,134.15,134.09,8.8769365]
[1763439050874,8.95275977,134.11,134.09,8.1769365]
[1763439051374,8.95275977,134.11,134.08,8.1769365]
[1763439051375,8.95275977,134.1,134.08,8.1769365]
[1763439052247,8.95275977,134.1,134.09,8.1769365]
[1763439052450,0.7,134.11,134.09,8.1769365]
[1763439052671,0.7,134.11,134.08,8.1769365]
[1763439052672,8.95275977,134.1,134.08,8.1769365]
[1763439052872,8.95275977,134.09,134.06,8.1769365]
[1763439053172,8.95275977,134.08,134.06,8.1769365]
[1763439053346,8.95275977,134.08,134.07,8.1769365]
[1763439054169,8.95275977,134.08,134.07,12.40497486]
[1763439054546,8.95275977,134.09,134.07,12.40497486]
[1763439056857,5.72298254,134.09,134.07,12.40497486]
[1763439057054,5.72298254,134.1,134.07,12.40497486]
[1763439057251,5.72298254,134.1,134.09,8.21376238]
[1763439057481,5.72298254,134.1,134.08,12.40497486]
[1763439057675,5.72298254,134.1,134.09,8.21668712]
[1763439058181,11.44596508,134.1,134.01,12.40497486]
[1763439058470,18.12096,134.06,134.04,6.16982325]
[1763439059444,15.51181023,134.05,134.04,6.16982325]
[1763439059641,9.78882769,134.04,134.02,6.16982325]
[1763439059864,9.78882769,134.02,134.01,6.16982325]
[1763439060073,15.51181023,134.02,134.01,6.16982325]
[1763439060444,18.12096,134.0,133.99,6.16982325]
[1763439060641,23.84394254,134.0,133.98,6.16982325]
[1763439060874,5.72298254,133.99,133.98,6.16982325]
[1763439062270,5.72298254,133.99,133.97,1.72593088]
[1763439062470,5.72298254,133.98,133.97,1.72593088]
[1763439062950,5.72298254,133.98,133.97,7.89609626]
[1763439063146,15.51181023,133.98,133.97,1.72593088]
[1763439063356,9.78882769,133.97,133.95,6.17016538]
[1763439063554,5.72298254,133.96,133.94,0.1]
[1763439063876,5.72298254,133.95,133.94,0.1]
[1763439064272,18.12096,133.98,133.94,0.1]
[1763439064470,8.58267305,134.03,133.94,0.1]
[1763439064471,5.72298254,133.95,133.94,6.27018009]
[1763439064855,5.72298254,133.95,133.94,6.26197751]
[1763439065160,102.7,133.99,133.94,0.1]
[1763439065359,102.7,133.99,133.95,6.15777212]
[1763439065614,5.72298254,133.96,133.95,6.15777212]
[1763439066283,5.72298254,133.96,133.94,6.25777212]
[1763439066575,5.72298254,133.95,133.94,0.1]
[1763439067162,15.51181023,133.95,133.92,0.1]
[1763439067479,15.51181023,133.93,133.92,0.1]
[1763439067687,21.23479277,133.93,133.92,0.1]
[1763439067863,5.72298254,133.9,133.88,6.15777212]
[1763439068054,5.72298254,133.89,133.87,0.1]
[1763439068389,18.12096,133.92,133.87,0.8]
[1763439068558,18.12096,133.92,133.9,6.14860282]
[1763439068978,113.28267305,133.99,133.91,0.7]
[1763439068979,9.78882769,133.98,133.91,0.7]
[1763439069174,27.90978769,133.98,133.92,6.14339406]
[1763439069383,9.78882769,133.98,133.92,6.14339406]
[1763439069585,9.78882769,133.98,133.93,0.7]
[1763439069775,5.72298254,133.96,133.93,6.84339406]
[1763439069958,5.72298254,134.0,133.93,6.84339406]
[1763439069959,5.72298254,133.95,133.93,6.84339406]
[1763439070382,5.72298254,133.94,133.93,6.84339406]
[1763439071169,5.72298254,133.94,133.92,6.14339406]
[1763439071486,5.72298254,133.93,133.91,6.14339406]
[1763439071688,5.72298254,133.92,133.91,6.14339406]
[1763439072161,5.72298254,133.92,133.87,0.1]
[1763439072162,5.72298254,133.92,133.9,6.14339406]
[1763439072361,5.72298254,133.91,133.89,6.14339406]
[1763439072778,5.72298254,133.91,133.9,0.68]
[1763439072979,5.72298254,133.92,133.9,0.68]
[1763439073485,5.72298254,133.92,133.9,6.82339406]
[1763439074265,5.72298254,133.92,133.9,0.68]
[1763439074467,5.72298254,133.91,133.9,0.68]
[1763439074775,5.72298254,133.91,133.89,6.14339406]
[1763439074980,5.72298254,133.91,133.87,0.1]
[1763439074981,5.72298254,133.9,133.87,6.24339406]
[1763439075186,5.72298254,133.88,133.87,6.24339406]
[1763439075378,9.78882769,133.91,133.87,0.1]
[1763439075573,5.72298254,133.88,133.87,0.1]
[1763439076061,5.72298254,133.9,133.87,6.92339406]
[1763439076265,5.72298254,133.89,133.87,0.78]
[1763439076680,5.72298254,133.88,133.87,0.1]
[1763439077179,18.12096,133.94,133.87,0.1]
[1763439077389,5.72298254,133.88,133.87,0.1]
[1763439077778,9.78882769,133.93,133.87,0.78]
[1763439077983,5.72298254,133.88,133.87,0.1]
[1763439079792,15.51181023,133.88,133.87,0.1]
[1763439081791,120.82096,133.91,133.87,0.1]
[1763439081792,6.03415532,133.97,133.87,0.76]
[1763439082000,5.72298254,133.88,133.87,0.1]
[1763439083803,15.51181023,133.88,133.87,0.1]
[1763439084002,14.53915808,133.97,133.87,0.1]
[1763439084178,5.72298254,133.9,133.87,0.76]
[1763439084375,102.7,133.98,133.88,5.72298254]
[1763439084577,5.72298254,133.93,133.88,5.72298254]
[1763439084803,5.72298254,133.91,133.87,0.76]
[1763439085010,5.72298254,133.91,133.87,6.48298254]
[1763439085180,5.72298254,133.93,133.87,0.76]
[1763439085380,5.72298254,133.92,133.88,0.66]
[1763439085702,5.72298254,133.91,133.88,0.66]
[1763439086395,18.12096,133.93,133.88,0.66]
[1763439086581,5.72298254,133.92,133.88,0.66]
[1763439086784,5.72298254,133.93,133.88,6.38298254]
[1763439087206,5.72298254,133.92,133.89,0.66]
[1763439087888,27.90978769,133.94,133.89,0.66]
[1763439088148,5.72298254,133.92,133.89,0.66]
[1763439090321,130.60978769,133.94,133.89,0.66]
[1763439090650,102.7,133.94,133.89,0.66]
[1763439090796,102.7,133.94,133.9,5.72298254]
[1763439091184,102.7,133.94,133.91,0.66]
[1763439091408,108.42298254,133.95,133.91,0.66]
[1763439091928,5.72298254,133.94,133.91,0.66]
[1763439093402,108.42298254,133.95,133.91,0.66]
[1763439093802,27.90978769,133.97,133.91,0.66]
[1763439093803,9.78882769,133.97,133.92,5.72298254]
[1763439094001,9.78882769,133.97,133.93,6.38298254]
[1763439094307,15.51181023,133.97,133.93,0.66]
[1763439094518,15.51181023,133.97,133.94,0.66]
[1763439095014,9.78882769,133.97,133.94,0.66]
[1763439095732,120.82096,133.99,133.94,0.66]
[1763439096034,15.51181023,133.97,133.93,0.66]
[1763439096231,9.78882769,133.98,133.94,0.66]
[1763439096412,5.72298254,133.97,133.94,0.66]
[1763439096916,120.82096,133.99,133.94,0.66]
[1763439097111,102.7,133.99,133.94,14.5100707]
[1763439097316,102.7,133.99,133.95,8.12708816]
[1763439097531,102.7,133.99,133.95,14.5100707]
[1763439097842,102.7,133.99,133.96,0.66]
[1763439098226,5.72298254,133.98,133.94,8.78708816]
[1763439098542,15.51181023,133.98,133.95,0.66]
[1763439099231,9.78882769,133.98,133.95,0.66]
[1763439099437,108.42298254,133.99,133.96,8.12708816]
[1763439099841,108.42298254,133.99,133.96,8.78708816]
[1763439100051,108.42298254,133.99,133.97,0.66]
[1763439100217,9.78882769,133.98,133.96,0.66]
[1763439101420,108.42298254,133.99,133.96,8.78708816]
[1763439101730,108.42298254,133.99,133.97,8.12708816]
[1763439102336,108.42298254,133.99,133.97,8.78708816]
[1763439102534,9.78882769,133.98,133.96,8.12708816]
[1763439102736,9.78882769,133.98,133.96,8.78708816]
[1763439103218,15.51181023,133.98,133.96,8.78708816]
[1763439103419,15.51181023,133.98,133.97,8.12708816]
[1763439104225,9.78882769,133.98,133.97,8.12708816]
[1763439104551,15.51181023,133.98,133.97,8.12708816]
[1763439105144,15.51181023,133.98,133.96,8.12708816]
[1763439105722,6.01170001,134.07,133.97,8.12708816]
[1763439105939,14.30565559,134.08,134.01,8.12708816]
[1763439106254,5.72298254,134.02,134.01,8.12708816]
[1763439106472,27.90978769,134.07,134.01,8.12708816]
[1763439106620,5.72298254,134.02,134.0,8.12708816]
[1763439106821,9.78882769,134.0,133.98,8.12708816]
[1763439107053,15.51181023,134.0,133.99,8.12708816]
[1763439107234,5.72298254,134.0,133.98,8.12708816]
[1763439107432,15.51181023,133.99,133.98,8.12708816]
[1763439107634,9.78882769,133.98,133.96,12.40497486]
[1763439108028,15.51181023,133.97,133.95,12.40497486]
[1763439108231,5.72298254,133.96,133.95,12.40497486]
[1763439108424,15.51181023,133.97,133.94,12.40497486]
[1763439108661,15.51181023,133.97,133.96,8.258608]
[1763439108951,9.78882769,133.97,133.95,12.40497486]
[1763439109133,15.51181023,133.97,133.95,13.06497486]
[1763439111165,14.5351574,134.07,133.93,8.27138836]
[1763439111166,33.63277023,133.96,133.93,8.27138836]
[1763439111466,5.72298254,133.94,133.91,12.40497486]
[1763439111639,15.51181023,133.94,133.92,12.40497486]
[1763439111841,5.72298254,133.93,133.91,12.40497486]
[1763439112069,9.78882769,133.94,133.91,13.06497486]
[1763439112070,5.72298254,133.92,133.91,13.06497486]
[1763439112240,5.72298254,133.93,133.91,13.06497486]
[1763439112439,5.72298254,133.92,133.91,13.06497486]
[1763439112829,15.51181023,133.92,133.91,12.40497486]
[1763439113253,15.51181023,133.92,133.9,12.40497486]
[1763439113440,5.72298254,133.91,133.9,12.40497486]
[1763439113844,5.72298254,133.94,133.9,0.66]
[1763439114051,5.72298254,133.95,133.91,0.66]
[1763439114228,5.72298254,133.95,133.93,12.41727022]
[1763439114633,5.72298254,133.95,133.94,12.41727022]
[1763439115043,15.51181023,133.95,133.94,12.41727022]
[1763439115256,9.78882769,133.94,133.93,12.41727022]
[1763439115763,5.72298254,133.94,133.93,12.41727022]
[1763439116841,3.76449047,133.94,133.93,12.41727022]
[1763439117963,3.76449047,133.94,133.92,8.29461816]
[1763439117964,9.78882769,133.93,133.92,8.29461816]
[1763439118168,9.78882769,133.93,133.91,8.29461816]
[1763439118169,13.55331816,133.93,133.91,8.29461816]
[1763439118360,13.55331816,133.92,133.91,8.29461816]
[1763439118668,9.78882769,133.92,133.91,8.29461816]
[1763439118853,9.78882769,133.91,133.9,12.41727022]
[1763439119070,13.55331816,133.91,133.89,12.41727022]
[1763439119278,3.76449047,133.9,133.89,12.41727022]
[1763439119569,3.76449047,133.9,133.88,12.41727022]
[1763439119857,9.78882769,133.9,133.89,12.41727022]
[1763439120059,13.55331816,133.9,133.89,12.41727022]
[1763439121333,3.76449047,133.91,133.87,0.1]
[1763439121656,3.76449047,133.93,133.89,0.66]
[1763439121865,3.76449047,133.94,133.89,17.17438042]
[1763439122165,31.67427816,133.94,133.93,12.43438684]
[1763439122550,31.67427816,133.94,133.92,12.43438684]
[1763439122864,13.55331816,133.93,133.92,12.43438684]
[1763439123257,3.76449047,133.95,133.92,0.66]
[1763439123581,3.76449047,133.93,133.92,12.44880508]
[1763439123745,18.12096,134.0,133.9,0.66]
[1763439124066,18.12096,133.94,133.93,12.44781622]
[1763439124246,31.67427816,133.94,133.93,12.44781622]
[1763439124760,9.78882769,133.93,133.92,12.44781622]
[1763439124950,13.55331816,133.93,133.92,12.44781622]
[1763439125150,13.55331816,133.93,133.91,12.44781622]
[1763439125352,9.78882769,133.93,133.92,8.29984723]
[1763439125557,13.55331816,133.93,133.92,8.30002334]
[1763439125765,13.55331816,133.93,133.91,12.44781622]
[1763439126063,9.78882769,133.93,133.92,8.30069994]
[1763439126268,9.78882769,133.93,133.92,8.30534996]
[1763439127186,27.90978769,133.9,133.89,8.30976045]
[1763439127362,9.78882769,133.89,133.87,0.1]
[1763439127560,13.55331816,133.88,133.87,0.1]
[1763439128868,18.79034349,133.88,133.87,0.1]
[1763439130149,27.90978769,133.85,133.84,0.1]
[1763439130377,9.78882769,133.8,133.78,0.1]
[1763439130580,18.12096,133.81,133.78,0.1]
[1763439130764,9.0015158,133.79,133.78,0.1]
[1763439131666,18.12096,133.81,133.78,0.1]
[1763439131667,18.12096,133.8,133.78,0.76]
[1763439131840,18.12096,133.8,133.78,0.1]
[1763439132056,9.0015158,133.81,133.79,0.71]
[1763439132448,9.0015158,133.8,133.78,0.1]
[1763439132664,9.0015158,133.8,133.78,0.81]
[1763439132857,9.0015158,133.82,133.78,0.81]
[1763439133054,9.0015158,133.83,133.78,9.8115158]
[1763439133272,9.0015158,133.82,133.78,0.81]
[1763439133576,9.0015158,133.82,133.79,0.71]
[1763439133763,27.90978769,133.84,133.79,0.71]
[1763439133959,9.0015158,133.82,133.79,0.71]
[1763439134851,9.0015158,133.81,133.79,0.71]
[1763439135856,27.90978769,133.84,133.79,0.71]
[1763439136050,9.0015158,133.82,133.79,0.71]
[1763439136365,18.12096,133.85,133.79,9.7115158]
[1763439136366,9.0015158,133.84,133.79,9.7115158]
[1763439136673,9.0015158,133.85,133.8,9.0015158]
[1763439136841,9.78882769,133.88,133.8,9.0015158]
[1763439136842,9.0015158,133.86,133.8,9.7115158]
[1763439137044,9.0015158,133.86,133.81,22.15933202]
[1763439137362,9.0015158,133.88,133.83,9.0015158]
[1763439137545,27.1224758,133.9,133.84,21.44933202]
[1763439137751,9.0015158,133.9,133.85,9.0015158]
[1763439137969,8.58267305,133.98,133.85,9.0015158]
[1763439137970,8.58267305,133.98,133.85,22.15933202]
[1763439138172,9.0015158,133.91,133.86,9.7115158]
[1763439138369,9.0015158,133.92,133.87,9.0015158]
[1763439138571,9.0015158,133.92,133.87,9.7115158]
[1763439138758,27.1224758,133.92,133.88,0.71]
[1763439138955,9.0015158,133.91,133.88,0.71]
[1763439140458,9.78882769,133.93,133.88,0.71]
[1763439140652,9.0015158,133.94,133.89,21.44933202]
[1763439140950,9.0015158,133.94,133.9,12.44781622]
[1763439141152,9.0015158,133.94,133.9,13.15781622]
[1763439141382,9.0015158,133.92,133.9,13.15781622]
[1763439141584,9.0015158,133.92,133.9,0.71]
[1763439141891,9.0015158,133.92,133.89,12.44781622]
[1763439142065,9.0015158,133.92,133.91,0.71]
[1763439142264,9.0015158,133.92,133.89,12.44781622]
[1763439142489,9.0015158,133.92,133.9,0.71]
[1763439143149,9.0015158,133.93,133.9,0.71]
[1763439143679,9.0015158,133.93,133.9,13.15781622]
[1763439143982,9.0015158,133.93,133.9,0.71]
[1763439144193,27.1224758,133.95,133.91,0.71]
[1763439144753,9.0015158,134.01,133.91,0.71]
[1763439144997,8.58267305,134.04,133.92,21.44933202]
[1763439145207,9.0015158,133.99,133.94,12.44781622]
[1763439145359,8.58267305,134.04,133.95,21.44933202]
[1763439145700,9.0015158,134.01,133.97,12.44781622]
[1763439145903,9.0015158,134.02,133.97,21.44933202]
[1763439146198,27.1224758,134.03,133.98,13.15781622]
[1763439146392,9.78882769,134.01,133.99,0.71]
[1763439147189,18.79034349,134.01,133.99,0.71]
[1763439147351,9.0015158,134.0,133.96,12.44781622]
[1763439147556,18.79034349,133.97,133.94,0.71]
[1763439147759,18.79034349,133.99,133.95,12.44781622]
[1763439147968,9.78882769,133.99,133.95,12.44781622]
[1763439148169,18.79034349,133.99,133.96,0.71]
[1763439149088,9.0015158,133.99,133.96,0.71]
[1763439149388,18.79034349,134.01,133.96,9.7115158]
[1763439149565,18.79034349,134.01,133.96,0.71]
[1763439149882,9.78882769,134.01,133.97,0.71]
[1763439150094,9.0015158,134.0,133.97,0.71]
[1763439150567,9.78882769,134.01,133.97,0.71]
[1763439150770,9.0015158,134.0,133.97,0.71]
[1763439151093,18.79034349,134.01,133.97,0.71]
[1763439151584,9.0015158,134.0,133.97,0.71]
[1763439151766,9.78882769,133.99,133.97,0.71]
[1763439151973,18.79034349,134.01,133.97,0.71]
[1763439152783,9.78882769,134.01,133.97,9.7115158]
[1763439152984,18.79034349,134.01,133.97,13.15781622]
[1763439153292,18.79034349,134.01,133.98,0.71]
[1763439154384,9.0015158,134.03,133.98,9.7115158]
[1763439154555,9.78882769,134.02,133.98,9.7115158]
[1763439154760,9.78882769,134.02,133.99,0.71]
[1763439154990,18.79034349,134.02,133.99,0.71]
[1763439155159,9.0015158,134.01,133.96,22.15933202]
[1763439155359,9.0015158,134.01,133.96,9.0015158]
[1763439155600,9.0015158,134.01,133.97,0.71]
[1763439156986,9.78882769,134.02,133.97,0.71]
[1763439157170,9.78882769,134.02,133.98,9.0015158]
[1763439157789,18.79034349,134.02,133.99,0.71]
[1763439159104,9.78882769,134.02,133.99,0.71]
[1763439159305,18.12096,134.06,133.99,9.7115158]
[1763439159590,9.0015158,134.03,134.0,0.71]
[1763439160291,9.78882769,134.05,134.0,0.71]
[1763439160462,9.0015158,134.03,134.0,0.71]
[1763439160667,9.0015158,134.04,134.0,0.71]
[1763439160976,36.91130349,134.01,133.96,0.71]
[1763439161167,9.0015158,133.98,133.94,0.71]
[1763439161363,9.0015158,133.98,133.92,12.44781622]
[1763439161364,9.0015158,133.96,133.92,12.44781622]
[1763439161672,9.0015158,133.95,133.92,0.71]
[1763439161872,9.0015158,133.96,133.92,0.71]
[1763439162104,9.0015158,133.96,133.93,0.71]
[1763439162971,9.0015158,133.95,133.93,0.71]
[1763439163290,9.0015158,133.96,133.93,0.71]
[1763439163483,9.0015158,133.94,133.89,33.89714824]
[1763439163800,9.78882769,133.97,133.89,0.71]
[1763439163801,9.0015158,133.92,133.89,0.71]
[1763439164307,9.0015158,133.9,133.85,12.44781622]
[1763439164463,9.0015158,133.89,133.86,0.71]
[1763439164659,9.78882769,133.91,133.86,0.71]
[1763439164660,9.0015158,133.88,133.86,0.71]
[1763439164904,9.0015158,133.89,133.86,0.71]
[1763439165266,18.12096,133.97,133.88,9.0015158]
[1763439165594,9.0015158,133.98,133.92,9.0015158]
[1763439165777,9.0015158,133.99,133.93,9.7115158]
[1763439166178,9.0015158,133.98,133.94,0.71]
[1763439166481,9.0015158,133.96,133.92,0.71]
[1763439167003,9.78882769,133.99,133.92,0.71]
[1763439167165,9.0015158,133.96,133.92,0.71]
[1763439167671,9.0015158,134.01,133.9,0.71]
[1763439167672,9.78882769,133.93,133.9,0.71]
[1763439167873,18.79034349,133.93,133.9,0.71]
[1763439169380,9.0015158,133.92,133.88,0.71]
[1763439170471,9.0015158,133.91,133.88,0.71]
[1763439171102,9.0015158,133.92,133.88,0.71]
[1763439172284,102.7,133.96,133.88,0.71]
[1763439172285,9.78882769,133.95,133.88,0.71]
[1763439172489,18.79034349,133.95,133.88,13.15781622]
[1763439172700,18.79034349,133.95,133.89,9.0015158]
[1763439172874,18.79034349,133.95,133.89,9.7115158]
[1763439173074,18.79034349,133.95,133.9,0.71]
[1763439173419,9.0015158,133.94,133.9,0.71]
[1763439174195,9.78882769,133.95,133.9,0.71]
[1763439174196,9.0015158,133.93,133.9,0.71]
[1763439174568,102.7,133.92,133.9,0.71]
[1763439175185,102.7,133.92,133.9,8.90855769]
[1763439175491,102.7,133.92,133.91,8.19855769]
[1763439175681,102.7,133.92,133.91,8.90855769]
[1763439176469,102.7,133.92,133.91,0.71]
[1763439176671,102.7,133.92,133.91,8.90855769]
[1763439177276,102.7,133.92,133.9,8.19855769]
[1763439177482,102.7,133.92,133.91,8.19855769]
[1763439177691,102.7,133.92,133.9,8.90855769]
[1763439178274,102.7,133.92,133.91,8.19855769]
[1763439179175,102.7,133.92,133.9,13.15781622]
[1763439179687,102.7,133.92,133.91,0.71]
[1763439180274,102.7,133.92,133.91,13.15781622]
[1763439180576,102.7,133.92,133.91,0.71]
[1763439180881,102.7,133.92,133.91,13.06022704]
[1763439181278,102.7,133.92,133.9,12.35022704]
[1763439181279,108.43659677,133.92,133.9,12.35022704]
[1763439181490,118.22542446,133.92,133.9,8.24197579]
[1763439181675,118.22542446,133.92,133.91,8.24197579]
[1763439183887,118.22542446,133.92,133.89,13.06022704]
[1763439184208,112.48882769,133.92,133.91,8.23534093]
[1763439184377,108.43659677,133.92,133.9,13.06022704]
[1763439184577,102.7,133.92,133.9,13.06022704]
[1763439184776,102.7,133.92,133.88,5.73659677]
[1763439184777,5.73659677,133.95,133.91,0.71]
[1763439185001,5.73659677,133.95,133.93,12.34289317]
[1763439185208,5.73659677,133.95,133.94,8.22914656]
[1763439186411,15.52542446,133.95,133.94,8.22914656]
[1763439186992,5.73659677,133.95,133.94,8.22914656]
[1763439187310,9.78882769,133.96,133.94,8.22914656]
[1763439187607,5.73659677,133.95,133.93,12.34289317]
[1763439187776,5.73659677,133.95,133.92,0.71]
[1763439187777,9.78882769,133.96,133.94,8.23834091]
[1763439187978,5.73659677,133.95,133.94,8.23834091]
[1763439188389,9.78882769,133.96,133.94,8.23834091]
[1763439188701,9.78882769,133.96,133.88,44.50195438]
[1763439188702,108.43659677,133.95,133.93,8.23834091]
[1763439188891,5.73659677,133.94,133.93,8.23834091]
[1763439189097,15.52542446,133.94,133.93,8.23834091]
[1763439190784,33.64638446,133.94,133.92,8.23834091]
[1763439190977,5.73659677,133.93,133.92,8.23834091]
[1763439194118,15.52542446,133.93,133.92,8.23834091]
[1763439194493,112.48882769,133.92,133.9,8.23834091]
[1763439194683,112.48882769,133.92,133.88,12.34289317]
[1763439194684,9.78882769,133.9,133.88,8.23834091]
[1763439194889,18.12096,133.88,133.87,8.23834091]
[1763439195094,18.12096,133.88,133.81,0.69]
[1763439195095,9.78882769,133.87,133.81,0.69]
[1763439195307,2.41196748,133.82,133.81,0.69]
[1763439196226,2.41196748,133.82,133.79,0.69]
[1763439196392,37.55765761,133.84,133.78,12.44289317]
[1763439196594,2.41196748,133.82,133.78,0.79]
[1763439196795,12.60434762,133.92,133.8,5.74428917]
[1763439196993,5.74428917,133.87,133.81,5.74428917]
[1763439197294,5.74428917,133.87,133.82,18.08718234]
[1763439197517,5.74428917,133.88,133.82,18.77718234]
[1763439197810,5.74428917,133.85,133.83,0.69]
[1763439198111,23.86524917,133.86,133.83,0.69]
[1763439198694,5.74428917,133.84,133.81,0.67]
[1763439198918,9.78882769,133.85,133.82,0.67]
[1763439199209,5.74428917,133.88,133.82,18.75718234]
[1763439199407,5.74428917,133.88,133.82,0.67]
[1763439199617,5.74428917,133.87,133.83,0.67]
[1763439199811,9.78882769,133.88,133.83,0.67]
[1763439200113,102.7,133.87,133.83,6.41428917]
[1763439200323,102.7,133.95,133.85,5.74428917]
[1763439200486,5.74428917,133.91,133.86,6.41428917]
[1763439200684,9.78882769,133.92,133.86,6.41428917]
[1763439200685,5.74428917,133.92,133.87,5.74428917]
[1763439200896,5.74428917,133.92,133.87,6.41428917]
[1763439201096,5.74428917,133.92,133.88,0.67]
[1763439201725,5.74428917,133.91,133.88,0.67]
[1763439201932,5.74428917,133.9,133.88,0.67]
[1763439202091,5.74428917,133.89,133.88,0.67]
[1763439202297,9.78882769,133.94,133.88,0.67]
[1763439202298,5.74428917,133.9,133.88,0.67]
[1763439202715,9.78882769,133.94,133.88,0.67]
[1763439203025,5.74428917,133.9,133.88,0.67]
[1763439203218,5.74428917,133.91,133.88,0.67]
[1763439203596,9.78882769,133.94,133.88,0.67]
[1763439203804,5.74428917,133.91,133.88,0.67]
[1763439204219,5.74428917,133.92,133.88,0.67]
[1763439204994,5.74428917,133.92,133.89,12.34289317]
[1763439205189,5.74428917,133.92,133.9,12.34289317]
[1763439205817,5.74428917,133.91,133.9,12.34289317]
[1763439205995,5.74428917,133.91,133.9,13.01289317]
[1763439206199,15.53311686,133.91,133.9,12.34289317]
[1763439207031,9.78882769,133.9,133.89,12.34289317]
[1763439207196,5.74428917,133.9,133.88,12.34289317]
[1763439207403,5.74428917,133.89,133.88,12.34289317]
[1763439209335,15.53311686,133.91,133.88,0.67]
[1763439209496,5.74428917,133.91,133.88,0.67]
[1763439209692,15.53311686,133.92,133.88,0.67]
[1763439209897,5.74428917,133.92,133.91,12.38454689]
[1763439210129,102.7,133.93,133.91,12.38454689]
[1763439210297,5.74428917,133.92,133.91,12.38454689]
[1763439210496,102.7,133.93,133.91,12.38454689]
[1763439210725,102.7,133.93,133.92,13.05454689]
[1763439210908,102.7,133.93,133.89,17.18438042]
[1763439211092,102.7,133.93,133.92,12.37649782]
[1763439211294,102.7,133.93,133.89,0.67]
[1763439211295,102.7,133.93,133.9,0.67]
[1763439211704,108.44428917,133.93,133.9,0.67]
[1763439212035,108.44428917,133.93,133.92,12.39229863]
[1763439212211,108.44428917,133.93,133.9,0.67]
[1763439212727,5.74428917,133.92,133.89,16.51438042]
[1763439212913,5.74428917,133.91,133.88,16.51438042]
[1763439213221,5.74428917,133.91,133.87,17.18438042]
[1763439213423,9.78882769,133.92,133.86,16.51438042]
[1763439213424,15.53311686,133.89,133.86,16.51438042]
[1763439213605,5.74428917,133.87,133.85,0.67]
[1763439213922,5.74428917,133.86,133.83,0.67]
[1763439214106,5.74428917,133.86,133.85,12.41602671]
[1763439215331,15.53311686,133.86,133.85,12.41602671]
[1763439215545,9.78882769,133.85,133.81,12.41602671]
[1763439215710,15.53311686,133.82,133.8,12.41602671]
[1763439215925,5.74428917,133.81,133.8,12.41602671]
[1763439216233,8.58267305,133.88,133.8,12.41602671]
[1763439216447,15.53311686,133.81,133.8,12.41602671]
[1763439218119,9.78882769,133.81,133.8,13.08602671]
[1763439218318,9.78882769,133.81,133.8,12.41602671]
[1763439218319,15.53311686,133.81,133.8,12.41602671]
[1763439218527,9.78882769,133.8,133.79,12.41602671]
[1763439218735,15.53311686,133.8,133.78,12.51602671]
[1763439218941,5.74428917,133.79,133.78,12.51602671]
[1763439219247,15.53311686,133.79,133.78,12.51602671]
[1763439219449,15.53311686,133.79,133.78,0.1]
[1763439219947,9.78882769,133.79,133.78,0.1]
[1763439220130,15.53311686,133.79,133.78,0.1]
[1763439221020,33.65407686,133.79,133.78,0.1]
[1763439221942,15.53311686,133.79,133.78,0.1]
[1763439223242,9.78882769,133.79,133.78,0.1]
[1763439223446,15.53311686,133.79,133.78,0.1]
[1763439224747,9.78882769,133.79,133.78,0.1]
[1763439224951,15.53311686,133.79,133.78,0.1]
[1763439227546,9.78882769,133.79,133.78,0.1]
[1763439227734,15.53311686,133.79,133.78,0.1]
[1763439228748,27.90978769,133.75,133.73,0.1]